fUST/lending_fUST_20250906
["ID","MTS","AMOUNT","RATE_DAILY","PERIOD"]
[383687571,1757088086563,215.260999,0.00013965,10]
[383687572,1757088111001,362.832695,0.00013562,2]
[383687573,1757088134198,362.832695,0.00013562,2]
[383687574,1757088157306,362.832695,0.00013562,2]
[383687576,1757088179926,362.832695,0.00013562,2]
[383687577,1757088202747,362.832695,0.00013562,2]
[383687578,1757088227163,362.832695,0.00013562,2]
[383687579,1757088253092,362.832695,0.00013562,2]
[383687580,1757088276111,362.832695,0.00013562,2]
[383687581,1757088287744,666.0,0.00012868,2]
[383687582,1757088299993,362.832695,0.00013562,2]
[383687583,1757088325774,362.832695,0.00013562,2]
[383687585,1757088349130,557.874387,0.00013562,2]
[383687588,1757088372639,557.874387,0.00013562,2]
[383687589,1757088373084,285.27602366,0.00013452,2]
[383687590,1757088395200,557.874387,0.00013562,2]
[383687591,1757088410133,238.49,0.00012329,2]
[383687592,1757088418335,557.874387,0.00013562,2]
[383687593,1757088430952,351.94947834,0.00012329,2]
[383687594,1757088430985,12.41052166,0.00012329,2]
[383687595,1757088442508,299.73660308,0.00013562,2]
[383687596,1757088451684,828.1,0.00012329,2]
[383687597,1757088531113,3391.52007242,0.0001395,5]
[383687599,1757088614981,8872.17339692,0.00012867,2]
[383687600,1757088615007,41.78147834,0.00012867,2]
[383687601,1757088615039,1086.04512474,0.00012867,2]
[383687646,1757088632175,-362.832695,0.00013699,2]
[383687648,1757088632184,-195.041692,0.00013699,2]
[383687650,1757088632193,-160.74768731,0.00013769,2]
[383687652,1757088632202,-961.4457257,0.00013769,2]
[383687654,1757088632214,-9.0468925,0.00013769,2]
[383687656,1757088632223,-174.47001136,0.00013863,2]
[383687658,1757088632232,-174.47001133,0.00013865,2]
[383687660,1757088632241,-1200.0,0.00013866,2]
[383687662,1757088632250,-174.47001133,0.00013867,2]
[383687664,1757088632259,-342.4140513,0.00013867,2]
[383687743,1757088637931,-857.5859487,0.00013867,2]
[383687746,1757088637940,-300.0,0.00013867,2]
[383687748,1757088637950,-300.0,0.00013867,2]
[383687750,1757088637959,-300.0,0.00013867,2]
[383687752,1757088637969,-480.0,0.00013868,2]
[383687754,1757088637979,-480.0,0.00013868,2]
[383687756,1757088637988,-480.0,0.00013868,2]
[383687758,1757088637997,-480.0,0.00013868,2]
[383687760,1757088638007,-3196.25072474,0.00013868,2]
[383687761,1757088638017,-3196.25072474,0.00013868,2]
[383687762,1757088638027,-3196.25072474,0.00013868,2]
[383687763,1757088638036,-3196.25072474,0.00013868,2]
[383687764,1757088638045,-3196.25072474,0.00013868,2]
[383687765,1757088638054,-3196.25072474,0.00013868,2]
[383687766,1757088638063,-3196.25072474,0.00013868,2]
[383687767,1757088638072,-3196.25072474,0.00013868,2]
[383687768,1757088638081,-3196.25072474,0.00013868,2]
[383687769,1757088638090,-3196.25072474,0.00013868,2]
[383687770,1757088638099,-3196.25072474,0.00013868,2]
[383687771,1757088638108,-1479.536403,0.00013868,2]
[383687963,1757088640076,-1141.272,0.00013868,2]
[383687965,1757088640088,-575.44232174,0.00013868,2]
[383687967,1757088640097,-960.33050289,0.00013868,2]
[383687974,1757088640151,-2235.92022185,0.00013868,2]
[383687976,1757088640161,-3196.25072474,0.00013868,2]
[383687978,1757088640170,-3196.25072474,0.00013868,2]
[383687980,1757088640179,-3196.25072474,0.00013868,2]
[383687982,1757088640189,-3196.25072474,0.00013868,2]
[383687984,1757088640198,-3196.25072474,0.00013868,2]
[383687986,1757088640208,-3196.25072474,0.00013868,2]
[383687988,1757088640217,-3196.25072474,0.00013868,2]
[383687990,1757088640227,-3196.25072474,0.00013868,2]
[383687992,1757088640236,-3196.25072474,0.00013868,2]
[383687994,1757088640245,-3196.25072474,0.00013868,2]
[383687996,1757088640255,-3196.25072474,0.00013868,2]
[383687998,1757088640265,-3196.25072474,0.00013868,2]
[383688000,1757088640274,-3196.25072474,0.00013868,2]
[383688002,1757088640283,-2676.74622354,0.00013868,2]
[383688004,1757088640295,-519.5045012,0.00013868,2]
[383688006,1757088640304,-3196.25072474,0.00013868,2]
[383688008,1757088640313,-3196.25072474,0.00013868,2]
[383688010,1757088640323,-3196.25072474,0.00013868,2]
[383688012,1757088640332,-3196.25072474,0.00013868,2]
[383688014,1757088640341,-3196.25072474,0.00013868,2]
[383688016,1757088640351,-3196.25072474,0.00013868,2]
[383688018,1757088640360,-3196.25072474,0.00013868,2]
[383688020,1757088640370,-3196.25072474,0.00013868,2]
[383688022,1757088640379,-3196.25072474,0.00013868,2]
[383688024,1757088640388,-3196.25072474,0.00013868,2]
[383688026,1757088640399,-3196.25072474,0.00013868,2]
[383688028,1757088640408,-3196.25072474,0.00013868,2]
[383688030,1757088640417,-3196.25072474,0.00013868,2]
[383688032,1757088640426,-3196.25072474,0.00013868,2]
[383688034,1757088640436,-3196.25072474,0.00013868,2]
[383688036,1757088640446,-3196.25072474,0.00013868,2]
[383688038,1757088640455,-3196.25072474,0.00013868,2]
[383688040,1757088640464,-3196.25072474,0.00013868,2]
[383688042,1757088640473,-3196.25072474,0.00013868,2]
[383688044,1757088640482,-3196.25072474,0.00013868,2]
[383688045,1757088640492,-3196.25072474,0.00013868,2]
[383688046,1757088640501,-3196.25072474,0.00013868,2]
[383688047,1757088640511,-3196.25072474,0.00013868,2]
[383688048,1757088640520,-3196.25072474,0.00013868,2]
[383688049,1757088640534,-3196.25072474,0.00013868,2]
[383688050,1757088640543,-3196.25072474,0.00013868,2]
[383688051,1757088640552,-3196.25072474,0.00013868,2]
[383688052,1757088640561,-3196.25072474,0.00013868,2]
[383688053,1757088640571,-3196.25072474,0.00013868,2]
[383688054,1757088640580,-3196.25072474,0.00013868,2]
[383688055,1757088640589,-233.78185904,0.00013868,2]
[383688056,1757088640598,-181.13492294,0.00013868,2]
[383688057,1757088640607,-500.0,0.00013868,2]
[383688058,1757088640617,-500.0,0.00013868,2]
[383688059,1757088640625,-500.0,0.00013868,2]
[383688060,1757088640635,-500.0,0.00013868,2]
[383688061,1757088640645,-500.0,0.00013868,2]
[383688063,1757088640654,-500.0,0.00013868,2]
[383688064,1757088640664,-500.0,0.00013868,2]
[383688066,1757088640674,-500.0,0.00013868,2]
[383688068,1757088640683,-500.0,0.00013868,2]
[383688071,1757088640694,-500.0,0.00013868,2]
[383688084,1757088640814,-500.0,0.00013868,2]
[383688086,1757088640824,-500.0,0.00013868,2]
[383688088,1757088640834,-534.72,0.00013869,2]
[383688090,1757088640843,-480.0,0.00013869,2]
[383688092,1757088640853,-480.0,0.00013869,2]
[383688094,1757088640863,-719.97,0.00013869,2]
[383688096,1757088640873,-480.0,0.00013869,2]
[383688098,1757088640883,-480.0,0.00013869,2]
[383688100,1757088640893,-480.0,0.00013869,2]
[383688102,1757088640905,-480.0,0.00013869,2]
[383688104,1757088640915,-480.0,0.00013869,2]
[383688105,1757088640924,-480.0,0.00013869,2]
[383688107,1757088640934,-480.0,0.00013869,2]
[383688109,1757088640943,-480.0,0.00013869,2]
[383688111,1757088640954,-480.0,0.00013869,2]
[383688113,1757088640964,-480.0,0.00013869,2]
[383688115,1757088640973,-540.23919134,0.00013869,2]
[383688117,1757088640984,-480.0,0.00013869,2]
[383688119,1757088640993,-480.0,0.00013869,2]
[383688122,1757088641002,-480.0,0.00013869,2]
[383688123,1757088641012,-480.0,0.00013869,2]
[383688125,1757088641021,-480.0,0.00013869,2]
[383688127,1757088641030,-480.0,0.00013869,2]
[383688129,1757088641040,-480.0,0.00013869,2]
[383688131,1757088641049,-482.30376197,0.00013869,2]
[383688133,1757088641059,-480.0,0.00013869,2]
[383688135,1757088641069,-480.0,0.00013869,2]
[383688138,1757088641079,-380.26943114,0.00013869,2]
[383688139,1757088641088,-480.0,0.00013869,2]
[383688141,1757088641097,-480.0,0.00013869,2]
[383688143,1757088641106,-480.0,0.00013869,2]
[383688145,1757088641115,-480.0,0.00013869,2]
[383688147,1757088641125,-575.28,0.00013869,2]
[383688150,1757088641134,-480.0,0.00013869,2]
[383688151,1757088641145,-174.47001133,0.00013869,2]
[383688153,1757088641155,-555.57535561,0.00013869,2]
[383688156,1757088641165,-480.0,0.00013869,2]
[383688157,1757088641174,-480.0,0.00013869,2]
[383688159,1757088641183,-480.0,0.00013869,2]
[383688161,1757088641193,-480.0,0.00013869,2]
[383688164,1757088641203,-480.85298877,0.00013869,2]
[383688165,1757088641212,-480.0,0.00013869,2]
[383688168,1757088641222,-480.0,0.00013869,2]
[383688170,1757088641232,-480.0,0.00013869,2]
[383688172,1757088641241,-518.18,0.00013869,2]
[383688173,1757088641251,-480.0,0.00013869,2]
[383688176,1757088641261,-462.49301285,0.00013869,2]
[383688178,1757088641271,-480.0,0.00013869,2]
[383688180,1757088641280,-611.84,0.00013869,2]
[383688181,1757088641290,-480.0,0.00013869,2]
[383688183,1757088641300,-480.0,0.00013869,2]
[383688186,1757088641310,-480.0,0.00013869,2]
[383688188,1757088641319,-480.0,0.00013869,2]
[383688189,1757088641328,-392.20297653,0.00013869,2]
[383688192,1757088641338,-462.66024508,0.00013869,2]
[383688194,1757088641351,-17.33975492,0.00013869,2]
[383688196,1757088641360,-340.12024508,0.00013869,2]
[383688397,1757088643448,-139.87975492,0.00013869,2]
[383688399,1757088643458,-480.0,0.00013869,2]
[383688401,1757088643467,-480.0,0.00013869,2]
[383688403,1757088643477,-480.0,0.00013869,2]
[383688405,1757088643486,-480.0,0.00013869,2]
[383688407,1757088643495,-480.0,0.00013869,2]
[383688409,1757088643504,-296.30484144,0.00013869,2]
[383688411,1757088643516,-183.69515856,0.00013869,2]
[383688413,1757088643528,-179.98502447,0.00013869,2]
[383688594,1757088646195,-500.0,0.00013868,2]
[383688597,1757088646204,-500.0,0.00013868,2]
[383688599,1757088646214,-500.0,0.00013868,2]
[383688601,1757088646223,-500.0,0.00013868,2]
[383688603,1757088646233,-341.15323926,0.00013868,2]
[383688605,1757088646242,-500.0,0.00013868,2]
[383688607,1757088646251,-300.01497553,0.00013869,2]
[383688609,1757088646260,-480.0,0.00013869,2]
[383688611,1757088646270,-480.0,0.00013869,2]
[383688612,1757088646279,-480.0,0.00013869,2]
[383688614,1757088646288,-480.0,0.00013869,2]
[383688616,1757088646297,-480.0,0.00013869,2]
[383688619,1757088646307,-480.0,0.00013869,2]
[383688620,1757088646315,-480.0,0.00013869,2]
[383688622,1757088646325,-480.0,0.00013869,2]
[383688625,1757088646334,-480.0,0.00013869,2]
[383688627,1757088646343,-68.51359322,0.00013869,2]
[383688629,1757088646355,-411.48640678,0.00013869,2]
[383688631,1757088646364,-878.41,0.00013869,2]
[383688633,1757088646373,-480.0,0.00013869,2]
[383688635,1757088646382,-500.0,0.00013869,2]
[383688637,1757088646391,-480.0,0.00013869,2]
[383688639,1757088646401,-480.0,0.00013869,2]
[383688641,1757088646411,-480.0,0.00013869,2]
[383688643,1757088646420,-480.0,0.00013869,2]
[383688645,1757088646430,-480.0,0.00013869,2]
[383688647,1757088646439,-480.0,0.00013869,2]
[383688649,1757088646448,-608.66362371,0.00013869,2]
[383688651,1757088646458,-480.0,0.00013869,2]
[383688652,1757088646467,-559.23,0.00013869,2]
[383688655,1757088646477,-480.0,0.00013869,2]
[383688656,1757088646486,-480.0,0.00013869,2]
[383688658,1757088646496,-480.0,0.00013869,2]
[383688661,1757088646506,-34.8408267,0.00013869,2]
[383688664,1757088646533,-445.1591733,0.00013869,2]
[383688666,1757088646543,-480.0,0.00013869,2]
[383688668,1757088646552,-481.63209188,0.00013869,2]
[383688670,1757088646562,-480.0,0.00013869,2]
[383688672,1757088646573,-480.0,0.00013869,2]
[383688674,1757088646582,-480.0,0.00013869,2]
[383688676,1757088646594,-480.0,0.00013869,2]
[383688678,1757088646603,-480.0,0.00013869,2]
[383688680,1757088646614,-480.0,0.00013869,2]
[383688682,1757088646624,-480.0,0.00013869,2]
[383688684,1757088646633,-285.49,0.00013869,2]
[383688686,1757088646642,-480.0,0.00013869,2]
[383688688,1757088646653,-480.0,0.00013869,2]
[383688690,1757088646663,-480.0,0.00013869,2]
[383688692,1757088646672,-480.0,0.00013869,2]
[383688694,1757088646682,-482.02245497,0.00013869,2]
[383688696,1757088646691,-480.0,0.00013869,2]
[383688698,1757088646701,-480.0,0.00013869,2]
[383688700,1757088646712,-480.0,0.00013869,2]
[383688702,1757088646722,-84.50153371,0.00013869,2]
[383688705,1757088646735,-473.31846629,0.00013869,2]
[383688707,1757088646745,-480.0,0.00013869,2]
[383688708,1757088646755,-480.0,0.00013869,2]
[383688710,1757088646764,-480.0,0.00013869,2]
[383688712,1757088646773,-480.0,0.00013869,2]
[383688714,1757088646782,-480.0,0.00013869,2]
[383688716,1757088646792,-480.0,0.00013869,2]
[383688718,1757088646801,-466.22389191,0.00013869,2]
[383688720,1757088646810,-480.0,0.00013869,2]
[383688722,1757088646820,-480.0,0.00013869,2]
[383688724,1757088646830,-480.0,0.00013869,2]
[383688726,1757088646839,-480.0,0.00013869,2]
[383688728,1757088646848,-480.0,0.00013869,2]
[383688730,1757088646858,-480.0,0.00013869,2]
[383688732,1757088646867,-480.0,0.00013869,2]
[383688734,1757088646877,-480.0,0.00013869,2]
[383688736,1757088646886,-500.0,0.00013869,2]
[383688738,1757088646896,-486.19925006,0.00013869,2]
[383688740,1757088646910,-480.0,0.00013869,2]
[383688742,1757088646920,-480.0,0.00013869,2]
[383688744,1757088646929,-480.0,0.00013869,2]
[383688746,1757088646939,-480.0,0.00013869,2]
[383688759,1757088646949,-480.0,0.00013869,2]
[383688762,1757088647068,-480.0,0.00013869,2]
[383688764,1757088647078,-480.0,0.00013869,2]
[383688766,1757088647087,-480.0,0.00013869,2]
[383688768,1757088647097,-480.0,0.00013869,2]
[383688770,1757088647107,-480.0,0.00013869,2]
[383688772,1757088647116,-480.0,0.00013869,2]
[383688774,1757088647126,-450.26326121,0.00013869,2]
[383690373,1757088890550,-400.011625,0.00013593,2]
[383690375,1757089027102,646.9950788,0.00013633,2]
[383690376,1757089036024,646.9950788,0.00013633,2]
[383690377,1757089047093,233.98,0.00012329,2]
[383690378,1757089049485,43472.0298424,0.00013766,2]
[383690379,1757089061873,17398.96660732,0.00013492,2]
[383690381,1757089075719,-10000.01,0.00013628,2]
[383690383,1757089204741,1200.0,0.00013627,2]
[383690384,1757089227028,1397.64893096,0.00029264,60]
[383690385,1757089240082,5000.0,0.0001525,6]
[383690386,1757089264810,3603.64133087,0.0001525,6]
[383690399,1757089528135,539.732752,0.00013562,2]
[383690404,1757089552691,539.732752,0.00013562,2]
[383690405,1757089575811,171.16561419,0.00013352,2]
[383690406,1757089577441,539.732752,0.00013562,2]
[383690414,1757089687067,-610.96579565,0.00013665,2]
[383690415,1757089687096,-175.26455872,0.00013665,2]
[383690416,1757089687125,-1601.92865886,0.00013667,2]
[383690417,1757089687154,-344.69106,0.00013699,2]
[383690418,1757089687182,-195.041692,0.00013699,2]
[383690419,1757089687210,-175.26455869,0.000137,2]
[383690420,1757089687238,-175.0,0.00013764,2]
[383690421,1757089687267,-480.0,0.00013764,2]
[383690423,1757089687297,-300.0,0.00013764,2]
[383690424,1757089687565,175.26455869,0.00013734,2]
[383690426,1757089696978,-9824.74544131,0.00013765,2]
[383690427,1757089697163,-50.5750069,0.00013765,2]
[383690428,1757089697186,-9898.8599862,0.00013765,2]
[383690429,1757089697738,-480.0,0.00013765,2]
[383690430,1757089697764,-480.0,0.00013765,2]
[383690431,1757089697792,-480.0,0.00013765,2]
[383690432,1757089697827,-480.0,0.00013765,2]
[383690433,1757089697856,-480.0,0.00013765,2]
[383690434,1757089697886,-480.0,0.00013765,2]
[383690435,1757089697917,-480.0,0.00013765,2]
[383690436,1757089697946,-544.19,0.00013765,2]
[383690437,1757089697975,-441.33629599,0.00013765,2]
[383690438,1757089698003,-480.0,0.00013765,2]
[383690439,1757089698184,-348.95740802,0.00013765,2]
[383690440,1757089704430,11158.46094974,0.00013627,2]
[383690441,1757089706958,-131.04259198,0.00013765,2]
[383690442,1757089706991,-480.0,0.00013765,2]
[383690443,1757089707024,-480.0,0.00013765,2]
[383690444,1757089707057,-480.0,0.00013765,2]
[383690445,1757089707088,-480.0,0.00013765,2]
[383690446,1757089707121,-480.0,0.00013765,2]
[383690447,1757089707153,-480.0,0.00013765,2]
[383690448,1757089707184,-551.31,0.00013765,2]
[383690449,1757089707227,-711.81,0.00013765,2]
[383690450,1757089707265,-556.17047711,0.00013765,2]
[383690451,1757089707369,-480.0,0.00013765,2]
[383690452,1757089707400,-480.0,0.00013765,2]
[383690453,1757089707432,-480.0,0.00013765,2]
[383690454,1757089707462,-480.0,0.00013765,2]
[383690455,1757089707494,-480.0,0.00013765,2]
[383690456,1757089707525,-480.0,0.00013765,2]
[383690457,1757089707558,-151.0,0.00013765,2]
[383690458,1757089707589,-151.0,0.00013765,2]
[383690459,1757089707620,-480.0,0.00013765,2]
[383690460,1757089707651,-169.811716,0.00013765,2]
[383690461,1757089707682,-480.0,0.00013765,2]
[383690462,1757089707712,-151.0,0.00013765,2]
[383690463,1757089707741,-151.0,0.00013765,2]
[383690464,1757089707771,-231.725683,0.00013765,2]
[383690465,1757089707801,-77.209519,0.00013765,2]
[383690466,1757089708328,-97.274317,0.00013765,2]
[383690467,1757089708342,-57.241847,0.00013765,2]
[383690468,1757089708352,-174.483836,0.00013765,2]
[383690469,1757089708374,-231.725683,0.00013765,2]
[383690490,1757089832100,-300.0,0.00013763,2]
[383690495,1757089832268,-437.13219998,0.00013763,2]
[383690642,1757089843199,-762.86780002,0.00013763,2]
[383690644,1757089843209,-480.0,0.00013763,2]
[383690646,1757089843218,-157.52932422,0.00013763,2]
[383690648,1757089843228,-704.79213492,0.00013763,2]
[383690655,1757089843277,-1524.15274198,0.00013763,2]
[383690657,1757089843286,-2228.9448769,0.00013763,2]
[383690659,1757089843295,-2228.9448769,0.00013763,2]
[383690660,1757089843304,-2228.9448769,0.00013763,2]
[383690661,1757089843314,-2228.9448769,0.00013763,2]
[383690662,1757089843323,-797.99775042,0.00013763,2]
[383690668,1757089846347,-735.04964314,0.00013763,2]
[383690669,1757089916219,300.0,0.00013624,2]
[383690671,1757089940664,220.57013586,0.00013526,2]
[383690673,1757090006122,213.3869762,0.00012763,2]
[383690674,1757090006259,10000.0,0.00012763,2]
[383690675,1757090026997,-699.67114177,0.00013662,2]
[383690676,1757090029254,-164.11778576,0.00013662,2]
[383690677,1757090186249,19117.21806801,0.00012744,2]
[383690678,1757090186291,62694.75343309,0.00012744,2]
[383690682,1757090497873,-239.09353711,0.0001356,2]
[383690683,1757090500872,-197.31081951,0.0001356,2]
[383690684,1757090504719,-427.65412325,0.0001356,2]
[383690685,1757090507987,-130.42465178,0.0001356,2]
[383690694,1757090649252,452.4,0.00012329,2]
[383690695,1757090710493,-196.49673194,0.00013558,2]
[383690696,1757090712099,-289.25280362,0.00013558,2]
[383690697,1757090714382,-245.10990963,0.00013558,2]
[383690698,1757090717163,-222.27948148,0.00013558,2]
[383690699,1757090719901,-198.06870858,0.00013558,2]
[383690700,1757090721970,-615.55662223,0.00013558,2]
[383690701,1757090724016,-360.54778552,0.00013558,2]
[383690702,1757090727181,-183.77986137,0.00013558,2]
[383690703,1757090729819,-187.40894942,0.00013558,2]
[383690704,1757090731902,-508.46111864,0.00013558,2]
[383690706,1757090777784,-385.98616787,0.00013558,2]
[383690707,1757090780979,-197.63438477,0.00013558,2]
[383690708,1757090784167,-286.55218751,0.00013558,2]
[383690746,1757091032321,-2585.36646631,0.00013563,2]
[383690748,1757091032331,-3006.96197241,0.00013584,2]
[383690750,1757091032341,-3006.96197241,0.00013611,2]
[383690752,1757091032351,-1200.0,0.00013634,2]
[383690754,1757091032361,-300.0,0.00013636,2]
[383690756,1757091032371,-300.0,0.00013636,2]
[383690758,1757091032382,-300.0,0.00013636,2]
[383690760,1757091032392,-300.0,0.00013636,2]
[383690762,1757091032401,-520.0,0.00013636,2]
[383690764,1757091032411,-3006.96197241,0.00013637,2]
[383690767,1757091032421,-154.860093,0.00013656,2]
[383690769,1757091032430,-184.477739,0.00013656,2]
[383690771,1757091032439,-151.0,0.00013656,2]
[383690773,1757091032449,-151.0,0.00013656,2]
[383690775,1757091032458,-151.0,0.00013656,2]
[383690777,1757091032467,-151.0,0.00013656,2]
[383690779,1757091032476,-151.0,0.00013656,2]
[383690781,1757091032484,-151.0,0.00013656,2]
[383690783,1757091032493,-578.276804,0.00013656,2]
[383690785,1757091032501,-151.0,0.00013656,2]
[383690787,1757091032511,-578.276804,0.00013656,2]
[383690789,1757091032521,-151.0,0.00013656,2]
[383690791,1757091032530,-578.276804,0.00013656,2]
[383690793,1757091032540,-195.326204,0.00013656,2]
[383690795,1757091032550,-500.0,0.00013656,2]
[383690797,1757091032559,-500.0,0.00013656,2]
[383690798,1757091032570,-366.43647036,0.00013656,2]
[383690799,1757091032579,-500.0,0.00013656,2]
[383690800,1757091032588,-500.0,0.00013656,2]
[383690801,1757091032598,-394.86251244,0.00013656,2]
[383690802,1757091032607,-500.0,0.00013656,2]
[383690803,1757091032617,-500.0,0.00013656,2]
[383690804,1757091032626,-500.0,0.00013656,2]
[383690805,1757091032636,-500.0,0.00013656,2]
[383690806,1757091032645,-500.0,0.00013656,2]
[383690807,1757091032654,-500.0,0.00013656,2]
[383690808,1757091032663,-446.73448081,0.00013656,2]
[383690809,1757091032672,-500.0,0.00013656,2]
[383690810,1757091032681,-500.0,0.00013656,2]
[383690811,1757091032691,-500.0,0.00013656,2]
[383690812,1757091032700,-500.0,0.00013656,2]
[383690813,1757091032708,-500.0,0.00013656,2]
[383690814,1757091032717,-500.0,0.00013656,2]
[383690815,1757091032725,-500.0,0.00013656,2]
[383690816,1757091032734,-500.0,0.00013656,2]
[383690817,1757091032743,-500.0,0.00013656,2]
[383690818,1757091032752,-500.0,0.00013656,2]
[383690819,1757091032762,-500.0,0.00013656,2]
[383690820,1757091032771,-500.0,0.00013656,2]
[383690822,1757091032781,-500.0,0.00013656,2]
[383690824,1757091032790,-500.0,0.00013656,2]
[383690826,1757091032799,-1346.29503908,0.00013656,2]
[383690866,1757091038444,-578.276804,0.00013656,2]
[383690867,1757091038455,-578.276804,0.00013656,2]
[383690868,1757091038464,-257.049006,0.00013656,2]
[383690869,1757091038473,-578.276804,0.00013656,2]
[383690870,1757091038484,-578.276804,0.00013656,2]
[383690871,1757091038493,-578.276804,0.00013656,2]
[383690872,1757091038503,-578.276804,0.00013656,2]
[383690873,1757091038513,-578.276804,0.00013656,2]
[383690874,1757091038524,-244.533514,0.00013656,2]
[383690875,1757091038533,-578.276804,0.00013656,2]
[383690876,1757091038542,-151.0,0.00013656,2]
[383690877,1757091038552,-420.54549391,0.00013656,2]
[383690878,1757091038583,-545.89180486,0.00013656,2]
[383690879,1757091038593,-32.38499914,0.00013656,2]
[383690880,1757091038601,-362.93662286,0.00013656,2]
[383690881,1757091038610,-500.0,0.00013656,2]
[383690882,1757091038619,-500.0,0.00013656,2]
[383690883,1757091038629,-553.69664648,0.00013656,2]
[383690884,1757091038637,-959.55451934,0.00013656,2]
[383690936,1757091040527,-151.0,0.00013656,2]
[383690937,1757091040537,-151.0,0.00013656,2]
[383690938,1757091040547,-837.4610469,0.00013656,2]
[383690939,1757091040560,-332.76158961,0.00013656,2]
[383690940,1757091040570,-500.0,0.00013656,2]
[383690941,1757091040579,-500.0,0.00013656,2]
[383690942,1757091040588,-500.0,0.00013656,2]
[383690943,1757091040598,-356.50180014,0.00013656,2]
[383690944,1757091040610,-500.0,0.00013656,2]
[383690945,1757091040620,-500.0,0.00013656,2]
[383690946,1757091040629,-997.28898188,0.00013656,2]
[383690949,1757091040750,-1132.48817397,0.00013656,2]
[383690950,1757091040760,-500.0,0.00013656,2]
[383690951,1757091040770,-500.0,0.00013656,2]
[383690952,1757091040779,-400.0,0.00013656,2]
[383690953,1757091040788,-500.0,0.00013656,2]
[383690954,1757091040798,-2129.77715585,0.00013656,2]
[383690955,1757091040807,-500.0,0.00013656,2]
[383690956,1757091040817,-500.0,0.00013656,2]
[383690957,1757091040828,-216.47823999,0.00013656,2]
[383690958,1757091040837,-2129.77715585,0.00013656,2]
[383690959,1757091040847,-500.0,0.00013656,2]
[383690960,1757091040857,-500.0,0.00013656,2]
[383690961,1757091040866,-296.85615194,0.00013656,2]
[383690962,1757091040878,-500.0,0.00013656,2]
[383690963,1757091040888,-2129.77715585,0.00013656,2]
[383690964,1757091040898,-344.11149811,0.00013656,2]
[383690965,1757091040907,-500.0,0.00013656,2]
[383690966,1757091040918,-500.0,0.00013656,2]
[383690967,1757091040929,-500.0,0.00013656,2]
[383690968,1757091040939,-500.0,0.00013656,2]
[383690969,1757091040949,-2129.77715585,0.00013656,2]
[383690970,1757091040958,-500.0,0.00013656,2]
[383690971,1757091040967,-420.32303843,0.00013656,2]
[383690972,1757091040976,-500.0,0.00013656,2]
[383690973,1757091040986,-500.0,0.00013656,2]
[383690974,1757091040995,-2129.77715585,0.00013656,2]
[383690975,1757091041004,-500.0,0.00013656,2]
[383690976,1757091041014,-500.0,0.00013656,2]
[383690977,1757091041024,-2129.77715585,0.00013656,2]
[383690978,1757091041034,-500.0,0.00013656,2]
[383690979,1757091041043,-500.0,0.00013656,2]
[383690980,1757091041055,-500.0,0.00013656,2]
[383690981,1757091041064,-2129.77715585,0.00013656,2]
[383690982,1757091041073,-500.0,0.00013656,2]
[383690983,1757091041082,-189.04462343,0.00013656,2]
[383690984,1757091041113,-500.0,0.00013655,2]
[383690985,1757091041123,-63.27660365,0.00013655,2]
[383690986,1757091041135,-193.22892561,0.00013655,2]
[383690987,1757091041145,-1698.32491299,0.00013656,2]
[383690988,1757091041156,-242.40761943,0.00013656,2]
[383690989,1757091041168,-357.74054446,0.00013656,2]
[383690990,1757091041181,-142.25945554,0.00013656,2]
[383690991,1757091041191,-500.0,0.00013656,2]